Cogmind - Beta 11.1 @@@ ROGUE MODE // 2022.06.09 @ 15:29:53 Player: btmk16 Result: Destroyed 0B10! Performance ------------- Evolutions (9) 4500 Regions Visited (20) 4000 Robots Destroyed (252) 1260 Value Destroyed (9886) 9886 Prototype IDs (13) 260 Alien Tech Used (4) 800 Bonus (15684) 15684 TOTAL SCORE: 36390 Bonus ------- High Alert Combat Kills 1827 Follower Combat Kills 975 Network Hubs Disabled 400 Used Core Reset Matrix 3000 Met Sigix 2000 Escaped with Sigix 5000 Win 3000 Friendly Fire -518 Cogmind --------- Core Integrity 1504/1600 Matter 280/300 Energy 349/450 System Corruption 7% Temperature Cool (18) Movement Flying (24) Location Tau Ceti IV Orbit Parts ------- > --- POWER (4) -------- Matter Drive > --- PROPULSION (8) --- Cooled Field Propulsion Drive Cooled Field Propulsion Drive Cooled Field Propulsion Drive Field Propulsion Array Field Propulsion Array Cooled Impulse Thruster > --- UTILITY (9) ------ Advanced Heat Sink Advanced Heat Sink Energy Well Structural Scanner Enhanced Optical Array Experimental Signal Interpreter Improved Salvage Targeting Computer Improved Propulsion Shielding Hacking Suite > --- WEAPON (4) ------- Centrium Greatsword Sigix Broadsword > --- INVENTORY (5) ---- Cooled Field Propulsion Drive Impulse Thruster Array Sigix Containment Pod Peak State ------------ > --- POWER ------------ Light Antimatter Reactor Matter Drive > --- PROPULSION ------- Cooled Field Propulsion Drive Cooled Field Propulsion Drive Cooled Field Propulsion Drive Field Propulsion Array Field Propulsion Array Cooled Impulse Thruster > --- UTILITY ---------- Advanced Heat Sink Advanced Heat Sink Energy Well Enhanced Optical Array Experimental Signal Interpreter Improved Salvage Targeting Computer ECM Suite Improved Propulsion Shielding Hacking Suite > --- WEAPON ----------- Centrium Greatsword Sigix Broadsword > --- INVENTORY -------- Cooled Field Propulsion Drive Enhanced Force Lance Sigix Containment Pod [Rating: 183] Favorites ----------- Power Neutrino Core Engine Reinforced Deuterium Engine Power Core Neutrino Core Reactor Light Antimatter Reactor Propulsion Carbon-fiber Leg Treads Medium Treads Leg Carbon-fiber Leg Wheel Wheel Hover Unit Improved Antigrav System Flight Unit Field Propulsion Array Utility Advanced Heat Sink Device Advanced Heat Sink Storage High-capacity Storage Unit Processor Experimental Signal Interpreter Hackware Improved System Shield Protection Improved Medium Armor Plating Weapon Improved Heavy Machine Gun Energy Gun Heavy Particle Gun Energy Cannon Heavy Phase Cannon Ballistic Gun Improved Heavy Machine Gun Ballistic Cannon Bore Cannon Launcher Grenade Launcher Special Weapon Plasma Cutter Impact Weapon Shock Maul Slashing Weapon Chainsword Piercing Weapon Enhanced Force Lance Special Melee Weapon Improved Datajack Build | -11 -10 -9 -8 -7 -7 -7 -6 -5 -5 -5 -5 -5 -4 -4 -4 -3 -3 -3 -2 -1 ------- Run | Scr Mat Mat Mat Fac Low Low Fac Fac Ext Cet Arc Hub Fac Upp Upp Res Qua Sec Res Acc Slots Evolved 18 | . . 2 2 2 . . 2 2 . . . . 2 . . 2 . . 2 2 Power 3 | . . . . . . . . . . . . . . . . 1 . . . 2 Propulsion 6 | . . 1 1 . . . . 2 . . . . . . . . . . 2 . Utility 7 | . . 1 1 2 . . . . . . . . 2 . . 1 . . . . Weapon 2 | . . . . . . . 2 . . . . . . . . . . . . . Parts Attached 358 | . 8 30 14 18 11 . 103 17 25 7 4 23 8 13 15 37 12 1 1 11 Power 27 | . . 3 1 2 . . 4 . 2 . . 3 . 1 . 5 4 . . 2 Engine 8 | . . 3 1 1 . . 2 . . . . . . . . . . . . 1 Core 8 | . . . . 1 . . . . 2 . . 3 . . . 2 . . . . Reactor 11 | . . . . . . . 2 . . . . . . 1 . 3 4 . . 1 Propulsion 118 | . 2 8 7 2 3 . 30 11 11 5 . 7 2 6 6 14 1 . . 3 Treads 35 | . 2 7 7 2 3 . 9 1 . . . . . 1 1 2 . . . . Leg 64 | . . . . . . . 12 10 11 5 . 7 2 5 5 7 . . . . Wheel 10 | . . 1 . . . . 9 . . . . . . . . . . . . . Hover 1 | . . . . . . . . . . . . . . . . . . . . 1 Flight 8 | . . . . . . . . . . . . . . . . 5 1 . . 2 Utility 100 | . 3 12 4 8 4 . 29 1 5 . . 8 5 2 3 10 2 1 1 2 Device 59 | . 2 7 3 5 1 . 20 1 4 . . 6 . . 3 5 . . 1 1 Storage 9 | . 1 1 . . . . 2 . . . . . 1 1 . . 2 . . 1 Processor 5 | . . . . 1 . . 1 . . . . . 1 1 . 1 . . . . Hackware 3 | . . . . . . . . . . . . . . . . 2 . 1 . . Protection 24 | . . 4 1 2 3 . 6 . 1 . . 2 3 . . 2 . . . . Artifact . | . . . . . . . . . . . . . . . . . . . . . Weapon 113 | . 3 7 2 6 4 . 40 5 7 2 4 5 1 4 6 8 5 . . 4 Energy Gun 20 | . . 3 2 1 . . 8 1 1 . . . . . . 4 . . . . Energy Cannon 5 | . . . . . . . . 3 . . . . . . 1 . 1 . . . Ballistic Gun 46 | . 2 3 . 2 3 . 17 . 3 1 4 5 1 2 2 . . . . 1 Ballistic Cannon 5 | . . . . . . . . . 2 1 . . . . 1 1 . . . . Launcher 9 | . . 1 . 1 1 . 3 . . . . . . . 2 . 1 . . . Special Weapon 1 | . . . . . . . . . . . . . . 1 . . . . . . Impact Weapon 4 | . . . . . . . 2 1 . . . . . 1 . . . . . . Slashing Weapon 17 | . . . . 2 . . 6 . 1 . . . . . . 3 3 . . 2 Piercing Weapon 1 | . . . . . . . . . . . . . . . . . . . . 1 Special Melee Weapon 5 | . 1 . . . . . 4 . . . . . . . . . . . . . Unidentified Prototypes 15 | . . . 2 . . . 4 . . . . . 2 . 1 1 4 . . 1 Corrupted Parts 3 | . . . . . . . . 2 1 . . . . . . . . . . . System Corruption 19 | . . . . . . . . 9 10 . . . . . . . . . . . Parts Lost 100 | . . 10 1 5 6 . 32 7 . . . 1 . 2 18 13 2 1 . 2 Power 7 | . . 1 . 1 . . 2 . . . . . . . 1 1 . . . 1 Propulsion 42 | . . 4 1 1 2 . 14 4 . . . . . 2 8 6 . . . . Utility 29 | . . 2 . 3 3 . 9 1 . . . 1 . . 4 2 2 1 . 1 Weapon 22 | . . 3 . . 1 . 7 2 . . . . . . 5 4 . . . . Highest Loss Streak 15 | . . 8 1 3 4 . 6 5 . . . 1 . 1 15 4 1 1 . 1 To Critical Strikes 3 | . . . . . 1 . 1 . . . . . . . . 1 . . . . Average Slot Usage (%) 93 | . 100 97 100 99 97 100 92 91 96 100 100 96 96 99 71 82 76 69 61 71 Engine 3 | . 14 11 9 6 . . 4 . . . . . . . . . . . . . Core 1 | . . . . . 7 7 . . 4 5 5 4 5 4 . 2 . . . . Reactor 1 | . . . . . . . 1 5 . . . . . . 2 4 8 4 4 5 Treads 13 | . 27 29 36 29 29 30 16 . . . . . . . 2 3 . . . . Leg 11 | . . . . . . . 4 32 34 35 35 33 31 30 18 16 . . . . Wheel 1 | . . 1 . . . . 3 . . . . . . . . . . . . . Flight 1 | . . . . . . . . . . . . . . . . 1 19 19 17 22 Device 15 | . 11 10 18 26 15 15 16 13 21 17 17 15 15 11 6 12 9 9 9 11 Storage 8 | . 16 12 9 7 7 7 6 11 11 11 11 11 10 10 10 8 3 . . 4 Processor 3 | . . . . 1 4 . 2 4 . . . . 4 8 10 10 14 14 13 12 Protection 6 | . . 8 9 9 16 23 8 . . 5 5 5 7 10 2 . 9 7 4 4 Energy Gun 4 | . . 6 18 7 . . 3 5 4 . . . . . . 4 . . . . Ballistic Gun 11 | . 25 15 . 5 13 15 18 . . 17 19 22 21 19 12 . . . . . Slashing Weapon 1 | . . . . 1 1 . 1 . . . . . . . . 2 10 9 8 7 Naked Turns . | . . . . . . . . . . . . . . . . . . . . . Heaviest Build 101 | 13 33 45 46 60 56 56 99 86 96 92 95 93 101 101 91 91 43 40 39 58 Greatest Support 112 | 20 40 63 86 88 104 104 112 90 95 100 100 100 100 110 110 100 50 44 44 70 Greatest Overweight (x) 8 | . . 3 . . 1 . 8 2 1 . . 1 1 1 1 3 . 1 1 . Average Overweight (x) . | . . . . . . . . . . . . . . . . . . . . . Largest Inventory Capacity 20 | . 15 15 15 15 15 15 20 20 20 20 20 20 20 20 20 20 5 5 5 5 Average Capacity 17 | . 14 15 15 15 15 15 19 20 20 20 20 20 20 20 20 18 5 5 5 5 Most Carried 20 | . 15 15 15 15 15 15 20 15 20 20 20 20 20 20 20 20 5 5 5 5 Average Carried 16 | . 11 14 14 14 11 15 18 13 18 20 20 20 20 19 15 16 4 5 5 4 Final Capacity 20 | 8 15 15 15 15 15 15 20 20 20 20 20 20 20 20 20 5 5 5 5 5 Final Carried 20 | 6 15 15 15 14 15 15 15 13 20 20 20 20 20 20 11 5 5 5 5 5 Class Distribution -------------------- 29% | Scavenger-Tank 28% | Scavenger-Mutant 16% | Mutant 8% | Scavenger-Gunner 4% | Tank 4% | Alien-Sprinter 3% | Trapper-Mutant 3% | Trapper-Tank Dominant Class ---------------- Mutant | -10/Materials Scavenger-Mutant | -9/Materials Mutant | -8/Materials Scavenger-Mutant | -7/Factory Mutant | -7/Lower Caves Trapper-Mutant | -7/Lower Caves Scavenger-Tank | -6/Factory Scavenger-Gunner | -5/Factory Scavenger-Mutant | -5/Extension Scavenger-Tank | -5/Cetus Scavenger-Tank | -5/Archives Scavenger-Tank | -5/Hub_04(d) Scavenger-Tank | -4/Factory Scavenger-Tank | -4/Upper Caves Mutant | -4/Upper Caves Scavenger-Mutant | -3/Research Sprinter | -3/Quarantine Alien-Sprinter | -3/Section 7 Alien-Mutant | -2/Research Alien-Sprinter | -1/Access Resources | -11 -10 -9 -8 -7 -7 -7 -6 -5 -5 -5 -5 -5 -4 -4 -4 -3 -3 -3 -2 -1 ----------- Run | Scr Mat Mat Mat Fac Low Low Fac Fac Ext Cet Arc Hub Fac Upp Upp Res Qua Sec Res Acc Matter Collected 8153 | 200 110 521 140 389 377 27 2986 308 594 207 182 533 89 329 307 520 42 30 93 169 Remotely . | . . . . . . . . . . . . . . . . . . . . . Salvage Created 13023 | . 141 886 984 1096 452 23 4581 665 730 360 191 845 89 416 413 825 34 30 93 169 Parts 589 | . 13 44 51 50 19 1 200 18 28 14 7 41 4 13 22 45 6 5 2 6 Haulers Intercepted 13 | . . 3 2 2 . . 2 . 1 . . 2 . . . . . . . 1 Recyclers Shooed 11 | . . 2 1 . . . 6 2 . . . . . . . . . . . . Parts Field Recycled . | . . . . . . . . . . . . . . . . . . . . . Retrieved Matter . | . . . . . . . . . . . . . . . . . . . . . Parts Self-Destructed 44 | . . . . . 16 . . . . . . . . 10 18 . . . . . Prevented . | . . . . . . . . . . . . . . . . . . . . . Kills | -11 -10 -9 -8 -7 -7 -7 -6 -5 -5 -5 -5 -5 -4 -4 -4 -3 -3 -3 -2 -1 ------- Run | Scr Mat Mat Mat Fac Low Low Fac Fac Ext Cet Arc Hub Fac Upp Upp Res Qua Sec Res Acc Combat Hostiles Destroyed 175 | . 5 16 20 19 9 . 56 6 8 6 2 5 1 3 8 10 . . 1 . Melee 12 | . . . . 6 . . 1 1 . . . . . . . 3 . . 1 . Guns 134 | . 5 14 20 10 8 . 50 3 1 4 . 5 1 3 7 3 . . . . Cannons 17 | . . . . . . . . 2 6 2 2 . . . 1 4 . . . . AOE 11 | . . 2 . 3 1 . 5 . . . . . . . . . . . . . Classes Destroyed 17 | . 3 5 2 2 1 . 4 . . . . . . . . . . . . . Worker 15 | . 1 1 . 1 . . 6 1 . . . 5 . . . . . . . . Builder 16 | . . . 1 . . . 6 . 3 . . 4 . . . . . 1 . 1 Hauler 13 | . . 3 2 2 . . 2 . 1 . . 2 . . . . . . . 1 Recycler 18 | . . 1 2 1 . . 11 2 . . . . . . . 1 . . . . Minesweeper 1 | . . . . . 1 . . . . . . . . . . . . . . . Mechanic 2 | . . . . . . . 1 . 1 . . . . . . . . . . . Operator 2 | . . . 1 . . . . 1 . . . . . . . . . . . . Watcher 8 | . . 1 . 1 . . 4 . . . . . . . . . 1 . . 1 Swarmer 31 | . 3 3 9 6 . . 6 . . . . . . . 4 . . . . . Saboteur 1 | . . . . . . . 1 . . . . . . . . . . . . . Grunt 77 | . 2 9 6 8 5 . 26 5 6 2 . . . . 3 5 . . . . Brawler 11 | . . 1 . 1 1 . 6 1 . . . . . . . 1 . . . . Duelist 6 | . . . . 1 1 . 3 . . . . . . . 1 . . . . . Protector 1 | . . . . . . . 1 . . . . . . . . . . . . . Sentry 22 | . . 3 5 2 1 . 4 . 1 . 2 2 1 . . . . . 1 . Hunter 10 | . . . . . . . 3 . 1 2 . 2 . 2 . . . . . . Programmer 14 | . . . . 1 1 . 6 . . . . 1 . 1 . 4 . . . . Cetus Guard 2 | . . . . . . . . . . 2 . . . . . . . . . . Decomposer 1 | . . . . . . 1 . . . . . . . . . . . . . . Thug 1 | . . . . . . . . . . . . 1 . . . . . . . . Guerrilla 1 | . . . . . . . . . . . . 1 . . . . . . . . Best Kill Streak 13 | . 4 4 5 9 4 . 11 4 6 4 2 13 1 2 4 3 1 1 1 1 Combat Bots Only 8 | . 3 4 5 6 4 . 8 4 5 4 2 3 1 2 4 3 . . 1 . Max Kills in Single Turn 10 | . 1 2 1 3 2 1 2 2 1 2 1 10 1 1 3 1 1 1 1 1 Gunslinging 2 | . . . . . 1 . . . . . . . . . 2 . . . . . Exploded 2 | . . 2 . 1 1 . 1 . . . . . . . . . . . . . Melee 1 | . . . . 1 . . 1 1 . . . . . . . 1 . . 1 . Uniques/NPCs Destroyed . | . . . . . . . . . . . . . . . . . . . . . Combat | -11 -10 -9 -8 -7 -7 -7 -6 -5 -5 -5 -5 -5 -4 -4 -4 -3 -3 -3 -2 -1 -------- Run | Scr Mat Mat Mat Fac Low Low Fac Fac Ext Cet Arc Hub Fac Upp Upp Res Qua Sec Res Acc Damage Taken 20624 | . 200 1605 805 953 1174 . 6361 1076 571 175 48 638 113 642 2189 1715 923 373 29 1034 Core 2271 | . 9 270 106 71 63 . 593 106 146 . . 78 43 48 261 152 184 45 . 96 Absorbed by Shields 955 | . . . 68 240 . . 381 . 34 . . . . . . 232 . . . . Reduced by Siege Mode 84 | . . . . . . . . . . . . . . . 70 14 . . . . Redirected to Shielding 174 | . . . . . . . . . . . . . . . . . 119 27 19 9 Regen/Repaired (Parts) 859 | . . . . . . . . . . . . . . . . . 79 98 62 620 Core Remaining (%) 74 | 100 96 32 80 . . 80 30 . . . . 67 . . 69 . . 70 100 94 Volleys Fired 582 | . 20 92 52 39 38 1 173 17 40 7 5 15 3 9 27 44 . . . . Largest 4 | . 2 2 2 2 2 2 4 3 3 4 4 4 4 4 4 3 . . . . Hottest 220 | . 40 130 130 110 56 56 194 220 220 151 151 136 136 136 170 185 . . . . Shots Fired 1544 | . 41 170 104 75 73 2 619 48 86 26 20 58 12 36 79 95 . . . . Gun 1394 | . 41 169 104 72 68 2 615 24 27 19 15 58 12 36 62 70 . . . . Cannon 137 | . . . . . . . . 24 59 7 5 . . . 17 25 . . . . Launcher 13 | . . 1 . 3 5 . 4 . . . . . . . . . . . . . Special . | . . . . . . . . . . . . . . . . . . . . . Kinetic 1129 | . 41 148 . 51 68 2 502 . 42 26 20 58 12 36 77 46 . . . . Thermal 359 | . . 21 104 21 . . 113 32 24 . . . . . 2 42 . . . . Explosive 13 | . . 1 . 3 5 . 4 . . . . . . . . . . . . . Electromagnetic 43 | . . . . . . . . 16 20 . . . . . . 7 . . . . Robot Hit Streak 27 | . 4 26 7 20 9 11 27 9 10 4 5 16 5 5 13 15 . . . . Robot Miss Streak 8 | . 5 8 3 4 4 . 7 5 4 5 4 3 2 3 4 2 . . . . Penetration Max 1 | . . . . 1 1 . 1 . 1 1 . 1 . . 1 . . . . . Secondary Targets 26 | . . 2 2 2 2 . 14 . . . . 1 . 1 2 . . . . . Max Gunslinging Chain 2 | . . 1 1 1 1 . 1 . . . . 1 . 1 2 . . . . . Shots Hit Robots 1054 | . 20 134 68 70 50 2 393 33 47 11 13 36 8 22 49 83 1 2 3 9 Core Hits 521 | . 9 57 53 37 26 1 199 15 21 8 4 24 3 11 20 29 1 . 1 2 Critical Kills 20 | . . . . 1 . 1 4 . 5 4 2 . . 2 1 . . . . . Critical Parts Destroyed 18 | . . . . . 1 . 2 2 6 1 . 2 . 2 2 . . . . . Critical Strikes 54 | . . . . 3 1 1 13 2 12 5 2 2 . 4 3 6 . . . . Burn 7 | . . . . 1 . . 5 . . . . . . . . 1 . . . . Meltdown 1 | . . . . . . . . . 1 . . . . . . . . . . . Destroy 34 | . . . . 1 1 1 6 . 8 5 2 2 . 3 3 2 . . . . Corrupt 1 | . . . . . . . . . 1 . . . . . . . . . . . Smash 5 | . . . . . . . . 2 2 . . . . 1 . . . . . . Sever 6 | . . . . 1 . . 2 . . . . . . . . 3 . . . . Melee Attacks 100 | . . . . 18 . . 13 4 4 . . . . 3 . 19 20 3 4 12 Impact 11 | . . . . . . . . 4 4 . . . . 3 . . . . . . Slashing 88 | . . . . 18 . . 12 . . . . . . . . 19 20 3 4 12 Piercing . | . . . . . . . . . . . . . . . . . . . . . Sneak Attacks 13 | . . . . . . . 3 3 1 . . . . . . . . 1 . 5 Combat Hostiles . | . . . . . . . . . . . . . . . . . . . . . Follow-up Attacks 7 | . . . . 3 . . . . . . . . . . . . . 1 1 2 Damage Inflicted 28549 | . 206 1357 1237 1942 1450 39 10378 1345 1621 360 366 2304 186 878 1132 2169 70 238 222 1049 Guns 18282 | . 206 1237 1237 1079 1072 39 8778 353 363 290 251 954 186 480 927 830 . . . . Cannons 2422 | . . . . . . . . 434 941 70 115 . . . 205 657 . . . . Explosions 3711 | . . 119 . 379 378 . 1300 186 . . . 1349 . . . . . . . . Melee 3983 | . . . . 468 . . 235 372 270 . . . . 398 . 669 62 238 222 1049 Ramming 151 | . . 1 . 16 . . 65 . 47 . . 1 . . . 13 8 . . . Kinetic 14927 | . 206 1016 . 765 1072 39 7299 . 378 360 366 954 186 480 1097 709 . . . . Thermal 5378 | . . 221 1237 314 . . 1479 697 647 . . . . . 35 748 . . . . Explosive 2176 | . . 119 . 379 378 . 1300 . . . . . . . . . . . . . Electromagnetic 1934 | . . . . . . . . 276 279 . . 1349 . . . 30 . . . . Impact 1040 | . . . . . . . . 372 270 . . . . 398 . . . . . . Slashing 2943 | . . . . 468 . . 235 . . . . . . . . 669 62 238 222 1049 Piercing . | . . . . . . . . . . . . . . . . . . . . . Highest Corruption 25 | . 2 . . . 5 5 10 12 22 22 22 25 3 5 5 14 14 3 . 7 Average Corruption 8 | . 2 . . . 2 5 4 10 12 22 22 24 3 3 5 8 5 3 . 5 Corruption Purged 5 | . . . . . . . 5 . . . . . . . . . . . . . Corruption Blocked . | . . . . . . . . . . . . . . . . . . . . . Effects 254 | . 4 . . . 7 2 79 15 50 13 8 28 . 12 5 23 5 2 . 1 Message Errors 51 | . . . . . 2 . 16 3 9 1 2 6 . 2 1 5 1 2 . 1 Matter Fused 61 | . . . . . 1 1 17 5 12 2 3 8 . 4 1 4 3 . . . Heat Flow Errors 34 | . 1 . . . 1 . 14 . 6 3 2 2 . 1 . 4 . . . . Energy Discharges 30 | . . . . . . . 12 3 3 1 . 3 . 1 . 6 1 . . . Parts Rejected 5 | . . . . . . . . . 3 . . 1 . . 1 . . . . . Data Loss (minor) 28 | . . . . . 1 1 5 3 3 3 1 3 . 4 1 3 . . . . Data Loss (major) 10 | . 1 . . . . . 4 . 4 . . 1 . . . . . . . . Misfires 8 | . 2 . . . 2 . 2 . 2 . . . . . . . . . . . Alerts 6 | . . . . . . . 1 . 3 . . 2 . . . . . . . . Misdirections 6 | . . . . . . . 1 1 2 1 . . . . . 1 . . . . Weapon Failures 15 | . . . . . . . 7 . 3 2 . 2 . . 1 . . . . . Overload Shots . | . . . . . . . . . . . . . . . . . . . . . Overflow Damage 1472 | . . 33 . 7 18 . 81 465 202 . . 133 . 103 . 5 . 114 . 311 Projectiles 14 | . . . . . . . . . 14 . . . . . . . . . . . Explosions 405 | . . 33 . . 18 . 45 176 . . . 133 . . . . . . . . Melee 1053 | . . . . 7 . . 36 289 188 . . . . 103 . 5 . 114 . 311 Knockbacks 15 | . . . . 1 . . . 3 4 . 1 . . . 3 3 . . . . Impact 5 | . . . . 1 . . . 3 1 . . . . . . . . . . . Kinetic 10 | . . . . . . . . . 3 . 1 . . . 3 3 . . . . Secondary . | . . . . . . . . . . . . . . . . . . . . . Self-Inflicted Damage 656 | . . . . . 159 . 182 160 . . . 151 . . . . 4 . . . Shots 13 | . . . . . 5 . 4 2 . . . 2 . . . . . . . . Rammed 8 | . . 2 . 1 . . 4 . . . . . . . . . 1 . . . Targets Rammed 15 | . . 2 . 1 . . 5 . 3 . . 1 . . . 2 1 . . . Kicked 6 | . . . . . . . . . 3 . . 1 . . . 2 . . . . Crushed 1 | . . . . . . . 1 . . . . . . . . . . . . . Highest Temperature 427 | . 190 269 83 . 222 . 427 51 220 231 245 221 8 207 197 126 1 . . 144 Average Temperature 75 | . 65 65 26 . 116 . 111 10 70 122 124 74 6 102 72 65 1 . . 65 Received Heat Transfer 4776 | . 36 723 360 301 201 . 1856 306 153 72 . 18 18 18 594 93 . 18 9 . Effects 6 | . . 3 . . 1 . 2 . . . . . . . . . . . . . Shutdowns 1 | . . . . . . . 1 . . . . . . . . . . . . . Energy Bleed 2 | . . . . . 1 . 1 . . . . . . . . . . . . . Interference 3 | . . 3 . . . . . . . . . . . . . . . . . . Siege Activations 2 | . . . . . . . . . . . . . . . 1 1 . . . . Total Turns 35 | . . . . . . . . . . . . . . . 13 22 . . . . Longest Duration 22 | . . . . . . . . . . . . . . . 13 22 . . . . Robots Corrupted . | . . . . . . . . . . . . . . . . . . . . . Combat Hostiles . | . . . . . . . . . . . . . . . . . . . . . Parts Fried 18 | . . . . . . . . 8 1 . . 9 . . . . . . . . Impact Corruptions 15 | . . . . . . . . 5 7 . . . . 3 . . . . . . Robots Melted 1 | . . . . . . . . . 1 . . . . . . . . . . . Combat Hostiles 1 | . . . . . . . . . 1 . . . . . . . . . . . Parts Melted 21 | . . . 5 . . . 5 . 1 2 . 1 . . . 7 . . . . Heat Transferred 9352 | . . 365 2317 703 . . 3092 803 703 . . . . . 37 1332 . . . . Parts Sabotaged 7 | . . . . . . . 7 . . . . . . . . . . . . . Parts Stolen . | . . . . . . . . . . . . . . . . . . . . . Parts Stripped . | . . . . . . . . . . . . . . . . . . . . . Power Chain Reactions . | . . . . . . . . . . . . . . . . . . . . . Missiles Intercepted . | . . . . . . . . . . . . . . . . . . . . . Alert | -11 -10 -9 -8 -7 -7 -7 -6 -5 -5 -5 -5 -5 -4 -4 -4 -3 -3 -3 -2 -1 ------- Run | Scr Mat Mat Mat Fac Low Low Fac Fac Ext Cet Arc Hub Fac Upp Upp Res Qua Sec Res Acc Peak Influence 1558 | . 180 292 674 500 . . 1558 913 965 803 457 1015 462 . . 161 420 340 266 548 Initial 753 | . . . 54 238 . . 83 753 386 540 321 159 406 . . 77 48 180 191 159 Average 454 | . 77 187 278 297 . . 685 817 611 622 443 638 418 . . 74 199 224 224 234 Maximum Alert Level 4 | . . 1 2 2 . . 4 3 3 3 2 3 2 . . . 2 1 1 2 Low Security (%) 30 | . 100 48 45 . . . 11 . . . . 31 . . . 100 54 62 17 54 Level 1 26 | . . 51 27 92 . . 28 . 11 . 7 3 . . . . 41 37 82 27 Level 2 21 | . . . 26 6 . . 21 . 66 75 92 . 100 . . . 3 . . 17 Level 3 12 | . . . . . . . 7 100 22 24 . 64 . . . . . . . . Level 4 9 | . . . . . . . 29 . . . . . . . . . . . . . Level 5 . | . . . . . . . . . . . . . . . . . . . . . High Security . | . . . . . . . . . . . . . . . . . . . . . Max Security . | . . . . . . . . . . . . . . . . . . . . . Squads Dispatched 51 | . 2 1 5 2 . . 26 2 4 1 . 1 . . . 1 2 . . 4 Investigation 7 | . . . 1 1 . . 1 . 2 1 . . . . . . 1 . . . Extermination 9 | . . . . 1 . . 6 . . . . . . . . 1 . . . 1 Reinforcement 19 | . 2 1 1 . . . 7 2 1 . . 1 . . . . 1 . . 3 Assault 11 | . . . 1 . . . 9 . 1 . . . . . . . . . . . Garrison 5 | . . . 2 . . . 3 . . . . . . . . . . . . . Intercept . | . . . . . . . . . . . . . . . . . . . . . Searches Triggered 1 | . . . . . . . . . . . . . . . . . 1 . . . Construction Impeded 2 | . . . . . . . 2 . . . . . . . . . . . . . Haulers Reinforced 3 | . . . . . . . 2 . . . . . . . . . . . . 1 Active Scanning Responses . | . . . . . . . . . . . . . . . . . . . . . Cargo Convoy Interrupts . | . . . . . . . . . . . . . . . . . . . . . Stealth | -11 -10 -9 -8 -7 -7 -7 -6 -5 -5 -5 -5 -5 -4 -4 -4 -3 -3 -3 -2 -1 --------- Run | Scr Mat Mat Mat Fac Low Low Fac Fac Ext Cet Arc Hub Fac Upp Upp Res Qua Sec Res Acc Distress Signals 16 | . 1 2 2 2 . . 2 . 2 1 . 2 . . . . 1 . . 1 Communications Jammed . | . . . . . . . . . . . . . . . . . . . . . Distress Signals . | . . . . . . . . . . . . . . . . . . . . . Times Spotted 374 | . 11 22 29 23 10 . 109 12 35 12 4 9 1 4 9 16 23 14 2 29 Peak Tracking Total 10 | . 5 6 5 8 5 . 9 5 6 5 2 6 1 2 5 5 10 9 1 8 Tactical Retreats 41 | . . 2 4 . . . 9 1 5 . . 2 . . . 1 7 2 . 8 Traps | -11 -10 -9 -8 -7 -7 -7 -6 -5 -5 -5 -5 -5 -4 -4 -4 -3 -3 -3 -2 -1 ------- Run | Scr Mat Mat Mat Fac Low Low Fac Fac Ext Cet Arc Hub Fac Upp Upp Res Qua Sec Res Acc Traps Triggered 20 | . 1 . . . . . 3 2 2 . . 8 . . . 1 1 2 . . Indirectly . | . . . . . . . . . . . . . . . . . . . . . Trap Hack Attempts 109 | . 43 . . . . . 66 . . . . . . . . . . . . . Triggered 2 | . 1 . . . . . 1 . . . . . . . . . . . . . Disarmed 3 | . 1 . . . . . 2 . . . . . . . . . . . . . Reprogrammed 14 | . 4 . . . . . 10 . . . . . . . . . . . . . Reused 9 | . . 3 . . . . 6 . . . . . . . . . . . . . Traps Extracted 11 | . 4 . . . . . 7 . . . . . . . . . . . . . Installed 8 | . . 3 . . . . 5 . . . . . . . . . . . . . Triggered 11 | . . 3 . . 1 . 6 . . . . . . 1 . . . . . . Most Traps Carried 10 | . 3 4 1 1 10 10 10 8 8 8 8 8 8 8 6 6 . . . . Machines | -11 -10 -9 -8 -7 -7 -7 -6 -5 -5 -5 -5 -5 -4 -4 -4 -3 -3 -3 -2 -1 ---------- Run | Scr Mat Mat Mat Fac Low Low Fac Fac Ext Cet Arc Hub Fac Upp Upp Res Qua Sec Res Acc Machines Disabled 63 | . . . 1 . . . 29 4 4 . 2 16 . . . . 6 . . 1 Max in Single Turn 14 | . . . 1 . . . 12 4 1 . 1 14 . . . . 1 . . 1 Garrison Access 2 | . . . 1 1 . . . . . . . . . . . . . . . . Network Hub 2 | . . . . . . . . . . . . 2 . . . . . . . . Machines Sabotaged . | . . . . . . . . . . . . . . . . . . . . . Garrisons Compromised . | . . . . . . . . . . . . . . . . . . . . . Overloaded Fab Kills . | . . . . . . . . . . . . . . . . . . . . . Hacking | -11 -10 -9 -8 -7 -7 -7 -6 -5 -5 -5 -5 -5 -4 -4 -4 -3 -3 -3 -2 -1 --------- Run | Scr Mat Mat Mat Fac Low Low Fac Fac Ext Cet Arc Hub Fac Upp Upp Res Qua Sec Res Acc Machines Accessed 51 | . 2 2 3 3 . . 10 2 11 1 1 3 2 1 . 4 2 1 . 3 Terminals 41 | . 2 2 3 1 . . 6 2 11 1 . 2 2 . . 3 2 1 . 3 Fabricators 5 | . . . . 1 . . 4 . . . . . . . . . . . . . Repair Stations . | . . . . . . . . . . . . . . . . . . . . . Recycling Units . | . . . . . . . . . . . . . . . . . . . . . Scanalyzers . | . . . . . . . . . . . . . . . . . . . . . Garrison Access 3 | . . . . 1 . . . . . . . 1 . . . 1 . . . . Total Hacks 127 | . 3 2 6 5 . . 18 5 23 3 25 7 4 1 . 13 3 1 . 8 Successful 59 | . 2 2 4 1 . . 7 1 6 . 25 2 2 1 . 2 2 . . 2 Failed 68 | . 1 . 2 4 . . 11 4 17 3 . 5 2 . . 11 1 1 . 6 Catastrophic 19 | . . . . 1 . . 4 1 3 1 . 2 . . . 5 . 1 . 1 Database Lockouts . | . . . . . . . . . . . . . . . . . . . . . Manual 16 | . 3 . 1 1 . . 7 . . . . . 1 . . 3 . . . . Terminals 84 | . 3 2 6 1 . . 11 5 23 3 . 5 4 . . 9 3 1 . 8 Fabricators 9 | . . . . 2 . . 7 . . . . . . . . . . . . . Repair Stations . | . . . . . . . . . . . . . . . . . . . . . Recycling Units . | . . . . . . . . . . . . . . . . . . . . . Scanalyzers . | . . . . . . . . . . . . . . . . . . . . . Garrison Access 8 | . . . . 2 . . . . . . . 2 . . . 4 . . . . Terminal Hacks 54 | . 2 2 4 . . . 3 1 6 . 25 2 2 1 . 2 2 . . 2 Record 25 | . . . . . . . . . . . 25 . . . . . . . . . Robot Analysis 2 | . 1 . 1 . . . . . . . . . . . . . . . . . Open Door 10 | . . . . . . . . 1 6 . . . . 1 . . 2 . . . Open DSF 1 | . . . . . . . . . . . . . 1 . . . . . . . Level Access Points 1 | . . . . . . . . . . . . . . . . . . . . 1 Branch Access Points 3 | . . 1 . . . . . . . . . 1 . . . 1 . . . . Recycling Unit Index 1 | . . . 1 . . . . . . . . . . . . . . . . . Alert Level 4 | . . 1 1 . . . . . . . . . 1 . . 1 . . . . Unreport Threat 2 | . . . . . . . . . . . . 1 . . . . . . . 1 Locate Traps 2 | . 1 . . . . . 1 . . . . . . . . . . . . . Hauler Manifests 1 | . . . 1 . . . . . . . . . . . . . . . . . Zone Layout 2 | . . . . . . . 2 . . . . . . . . . . . . . Fabricator Hacks 2 | . . . . . . . 2 . . . . . . . . . . . . . Network Status 2 | . . . . . . . 2 . . . . . . . . . . . . . Repair Station Hacks . | . . . . . . . . . . . . . . . . . . . . . Recycling Unit Hacks . | . . . . . . . . . . . . . . . . . . . . . Scanalyzer . | . . . . . . . . . . . . . . . . . . . . . Garrison Access Hacks 1 | . . . . 1 . . . . . . . . . . . . . . . . Seal Access 1 | . . . . 1 . . . . . . . . . . . . . . . . Unauthorized Hacks 2 | . . . . . . . 2 . . . . . . . . . . . . . Terminals 2 | . . . . . . . 2 . . . . . . . . . . . . . Assimilate 1 | . . . . . . . 1 . . . . . . . . . . . . . Botnet 1 | . . . . . . . 1 . . . . . . . . . . . . . Fabricators . | . . . . . . . . . . . . . . . . . . . . . Repair Stations . | . . . . . . . . . . . . . . . . . . . . . Recycling Units . | . . . . . . . . . . . . . . . . . . . . . Scanalyzers . | . . . . . . . . . . . . . . . . . . . . . Garrison Access . | . . . . . . . . . . . . . . . . . . . . . Data Cores Recovered 1 | . . . 1 . . . . . . . . . . . . . . . . . Used . | . . . . . . . . . . . . . . . . . . . . . Hacking Detections 41 | . 1 2 2 3 . . 10 2 7 1 . 3 1 . . 4 1 1 . 3 Full Trace Events 6 | . . . 1 1 . . 1 . 2 1 . . . . . . . . . . Feedback Events . | . . . . . . . . . . . . . . . . . . . . . Feedback Blocked . | . . . . . . . . . . . . . . . . . . . . . Robot Schematics Acquired . | . . . . . . . . . . . . . . . . . . . . . Robots Built . | . . . . . . . . . . . . . . . . . . . . . Authchips . | . . . . . . . . . . . . . . . . . . . . . Time . | . . . . . . . . . . . . . . . . . . . . . Total Robot Build Rating . | . . . . . . . . . . . . . . . . . . . . . Part Schematics Acquired . | . . . . . . . . . . . . . . . . . . . . . Parts Built . | . . . . . . . . . . . . . . . . . . . . . Authchips . | . . . . . . . . . . . . . . . . . . . . . Time . | . . . . . . . . . . . . . . . . . . . . . Total Part Build Rating . | . . . . . . . . . . . . . . . . . . . . . Parts Repaired . | . . . . . . . . . . . . . . . . . . . . . Time . | . . . . . . . . . . . . . . . . . . . . . Parts Recycled . | . . . . . . . . . . . . . . . . . . . . . Recycled Matter . | . . . . . . . . . . . . . . . . . . . . . Retrieved Matter . | . . . . . . . . . . . . . . . . . . . . . Retrieved Components . | . . . . . . . . . . . . . . . . . . . . . Parts Scanalyzed . | . . . . . . . . . . . . . . . . . . . . . Part Schematics Acquired . | . . . . . . . . . . . . . . . . . . . . . Parts Damaged . | . . . . . . . . . . . . . . . . . . . . . Bothacking | -11 -10 -9 -8 -7 -7 -7 -6 -5 -5 -5 -5 -5 -4 -4 -4 -3 -3 -3 -2 -1 ------------ Run | Scr Mat Mat Mat Fac Low Low Fac Fac Ext Cet Arc Hub Fac Upp Upp Res Qua Sec Res Acc Used RIF Installer . | . . . . . . . . . . . . . . . . . . . . . Robots Hacked . | . . . . . . . . . . . . . . . . . . . . . Non-combat . | . . . . . . . . . . . . . . . . . . . . . Combat . | . . . . . . . . . . . . . . . . . . . . . Robot Hacks Applied . | . . . . . . . . . . . . . . . . . . . . . Relay Couplers Released 6 | . . . 2 . . . . . . . . . . . . 4 . . . . Machine Destruction 2 | . . . 2 . . . . . . . . . . . . . . . . . Programmers 4 | . . . . . . . . . . . . . . . . 4 . . . . Fabnet Peak Effective % . | . . . . . . . . . . . . . . . . . . . . . Robots Rewired 14 | . . . . . . . . . 14 . . . . . . . . . . . Allies Hacked . | . . . . . . . . . . . . . . . . . . . . . Hacks Repelled . | . . . . . . . . . . . . . . . . . . . . . Allies | -11 -10 -9 -8 -7 -7 -7 -6 -5 -5 -5 -5 -5 -4 -4 -4 -3 -3 -3 -2 -1 -------- Run | Scr Mat Mat Mat Fac Low Low Fac Fac Ext Cet Arc Hub Fac Upp Upp Res Qua Sec Res Acc Total Allies 22 | . . . . . . . . . 22 . . . . . . . . . . . Largest Group 11 | . . . . . . . . . 11 10 5 3 . . . . . . . . Highest-Rated Group 334 | . . . . . . . . . 334 309 161 99 . . . . . . . . Highest-Rated Ally 39 | . . . . . . . . . 39 39 34 34 . . . . . . . . Total Orders . | . . . . . . . . . . . . . . . . . . . . . Ally Attacks 263 | . . . . . . . . . 161 71 23 8 . . . . . . . . Total Damage 4558 | . . . . . . . . . 2819 1210 369 160 . . . . . . . . Kills 29 | . . . . . . . . . 20 5 2 2 . . . . . . . . Allies Corrupted 1 | . . . . . . . . . . . . 1 . . . . . . . . Allies Melted . | . . . . . . . . . . . . . . . . . . . . . Intel | -11 -10 -9 -8 -7 -7 -7 -6 -5 -5 -5 -5 -5 -4 -4 -4 -3 -3 -3 -2 -1 ------- Run | Scr Mat Mat Mat Fac Low Low Fac Fac Ext Cet Arc Hub Fac Upp Upp Res Qua Sec Res Acc Robot Analysis Total 2 | . 1 . 1 . . . . . . . . . . . . . . . . . Derelict Logs Recovered 2 | . . . . . 1 . . . . . . . . 1 . . . . . . Drone Launches . | . . . . . . . . . . . . . . . . . . . . . Drone Recoveries . | . . . . . . . . . . . . . . . . . . . . . Exploration | -11 -10 -9 -8 -7 -7 -7 -6 -5 -5 -5 -5 -5 -4 -4 -4 -3 -3 -3 -2 -1 ------------- Run | Scr Mat Mat Mat Fac Low Low Fac Fac Ext Cet Arc Hub Fac Upp Upp Res Qua Sec Res Acc Turns Passed 12696 | . 480 850 828 836 599 73 3595 435 1190 195 195 547 231 534 189 1115 309 81 39 375 Spaces Moved 8064 | 1 223 348 318 399 292 44 1708 274 618 131 138 365 163 341 57 760 730 181 25 948 Core . | . . . . . . . . . . . . . . . . . . . . . Treads 2590 | . 218 280 318 399 292 44 1030 1 . . . . . . 8 . . . . . Legs 2869 | 1 5 . . . . . 231 273 618 131 138 365 163 341 49 554 . . . . Wheels 515 | . . 68 . . . . 447 . . . . . . . . . . . . . Hover . | . . . . . . . . . . . . . . . . . . . . . Flight 2090 | . . . . . . . . . . . . . . . . 206 730 181 25 948 Fastest Speed 12 | 120 120 125 160 162 162 162 105 120 120 120 120 120 120 120 120 31 23 29 29 12 Average Speed 114 | 120 159 153 160 162 162 162 155 124 130 120 120 122 127 131 155 108 29 31 32 23 Slowest Speed 450 | 120 160 240 162 163 240 162 450 320 190 120 120 190 190 190 190 330 31 109 109 29 Overloaded Moves 125 | . . . . . . . . . . . . . . . . . 55 . . 70 Propulsion Burnouts . | . . . . . . . . . . . . . . . . . . . . . Robots Hopped 5 | . . . . . . . . . . . . . . . . . 1 3 . 1 Cave-ins Triggered 2 | . . . . . . . . . . . . . . . . . 1 . . 1 Exploration Rate (%) 31 | 2 32 32 25 14 46 7 48 9 60 62 90 32 4 50 14 21 71 13 1 31 Regions Visited 20 Branch Regions 10 Pre-discovered Areas 1 | . . . . . . . . . . . . . . 1 . . . . . . Known Exits Taken 7 | . . . . . . . . . . . . . 1 1 1 1 1 1 1 . Unknown Exits Taken 13 | 1 1 1 1 1 1 1 1 1 1 1 1 1 . . . . . . . . Scrap Searched 2 | . . . . . 1 . . . . . . . . 1 . . . . . . Spaces Dug 30 | . . 9 . . 3 . 4 . 7 . . . . . . 1 4 . . 2 Terrain Destroyed 525 | . . 9 . 6 11 . 63 29 23 4 2 333 3 11 18 7 4 . . 2 Melee 11 | . . . . . . . 4 . . . . . . . . 1 4 . . 2 Projectile 88 | . . . . 1 1 . 2 3 23 4 2 14 3 11 18 6 . . . . AOE 424 | . . 9 . 5 10 . 55 26 . . . 319 . . . . . . . . Terrain Rammed . | . . . . . . . . . . . . . . . . . . . . . Walls Destroyed . | . . . . . . . . . . . . . . . . . . . . . Machines Disabled . | . . . . . . . . . . . . . . . . . . . . . Actions | -11 -10 -9 -8 -7 -7 -7 -6 -5 -5 -5 -5 -5 -4 -4 -4 -3 -3 -3 -2 -1 --------- Run | Scr Mat Mat Mat Fac Low Low Fac Fac Ext Cet Arc Hub Fac Upp Upp Res Qua Sec Res Acc Total 10189 | . 311 520 540 493 344 44 2248 317 925 154 157 421 179 398 99 925 797 196 48 1073 Wait 533 | . 6 18 134 4 . . 115 3 42 4 5 11 . 15 . 21 22 16 20 97 Move 8032 | . 222 347 317 398 291 43 1707 273 618 130 137 364 162 340 56 759 726 174 24 944 Hop 5 | . . . . . . . . . . . . . . . . . 1 3 . 1 Pick Up 90 | . 9 14 8 8 3 . 21 1 4 . 1 1 . 2 1 15 1 . . 1 Fast Attach 161 | . 2 6 3 5 1 . 31 10 10 . 2 20 6 9 4 30 11 1 1 9 Attach 75 | . . 9 3 6 7 . 26 6 . . . . . 1 9 6 . . . 2 Detach 26 | . 1 . . . 1 . 8 2 1 . . . . 2 . 9 . . . 2 Swap 124 | . 6 15 8 7 3 . 46 1 15 7 2 3 2 3 2 2 2 . . . Drop 162 | . 2 14 15 11 . . 32 . 14 6 5 6 6 11 . 18 16 . . 6 Fire 582 | . 20 92 52 39 38 1 173 17 40 7 5 15 3 9 27 44 . . . . Melee 88 | . . . . 14 . . 13 4 4 . . . . 3 . 19 16 2 3 10 Ram 1 | . . . . . . . . . . . . . . . . . 1 . . . Kick 5 | . . . . . . . . . 2 . . 1 . . . 2 . . . . Crush 8 | . . 2 . 1 . . 5 . . . . . . . . . . . . . Escape Stasis 20 | . . . . . . . . . 18 . . . . . . . 1 . . 1 Rewire 160 | . . . . . . . . . 157 . . . . 3 . . . . . . Trap 117 | . 43 3 . . . . 71 . . . . . . . . . . . . . Miscellaneous . | . . . . . . . . . . . . . . . . . . . . . Route ------- -11/Scrapyard -10/Materials -9/Materials (discovered 4 exits: *Mat / *Min x2 / *Sto) -8/Materials -7/Factory -7/Lower Caves -7/Lower Caves -6/Factory -5/Factory -5/Extension (discovered 2 exits: *Fac / *Cet) -5/Cetus -5/Archives (discovered 3 exits: *Fac / *Hub x2) -5/Hub_04(d) -4/Factory -4/Upper Caves -4/Upper Caves -3/Research (discovered 4 exits: *Res / *Arm / *Qua x2) -3/Quarantine -3/Section 7 -2/Research -1/Access Tau Ceti IV Orbit History --------- Turn | Location | Event 1 | -11/Scrapyard | Discovered new exit (range 0) 1 | -11/Scrapyard | Entered Materials 306 | -10/Materials | Build established: Mutant 409 | -10/Materials | Discovered new exit (range 6) 481 | -10/Materials | Entered another Materials area 481 | -9/Materials | Evolved 2 slots: Propulsion x1, Utility x1 481 | -9/Materials | Discovered new exit (range 8) 712 | -9/Materials | Lost 8 parts (1p3n2u2w) 743 | -9/Materials | Core integrity fell below 50% 1071 | -9/Materials | Build established: Scavenger-Mutant 1098 | -9/Materials | Discovered new exit (range 9) 1217 | -9/Materials | Identified exit to Mines 1217 | -9/Materials | Identified exit to Storage 1238 | -9/Materials | Discovered new exit (range 6) 1331 | -9/Materials | Entered another Materials area 1331 | -8/Materials | Evolved 2 slots: Propulsion x1, Utility x1 1836 | -8/Materials | Garrison activated, responded to threat 1982 | -8/Materials | Build established: Mutant 2101 | -8/Materials | Discovered new exit (range 16) 2159 | -8/Materials | Entered Factory 2159 | -7/Factory | Evolved 2 slots: Utility x2 2459 | -7/Factory | Build established: Scavenger-Mutant 2956 | -7/Factory | Lost 3 parts (1p1n1u) 2972 | -7/Factory | Discovered new exit (range 3) 2995 | -7/Factory | Entered Lower Caves 3064 | -7/Lower Caves | Attracted the attention of an 0b10 checkpoint 3111 | -7/Lower Caves | Lost 4 parts (2n1u1w) 3356 | -7/Lower Caves | Build established: Mutant 3419 | -7/Lower Caves | Learned Factory stockpile data 3458 | -7/Lower Caves | Discovered new exit (range 6) 3594 | -7/Lower Caves | Entered another Lower Caves area 3638 | -7/Lower Caves | Discovered new exit (range 7) 3667 | -7/Lower Caves | Entered Factory 3667 | -6/Factory | Evolved 2 slots: Weapon x2 3836 | -6/Factory | Build established: Trapper-Mutant 3858 | -6/Factory | Spotted B-75 Beast 3901 | -6/Factory | Garrison activated, responded to threat 4256 | -6/Factory | Build established: Scavenger-Tank 4618 | -6/Factory | Build established: Tank 5442 | -6/Factory | First assault squad dispatched 5956 | -6/Factory | Lost 4 parts (3n1w) 5957 | -6/Factory | Destroyed 8 combat bots 6248 | -6/Factory | Build established: Scavenger-Tank 6275 | -6/Factory | Lost 6 parts (2n2u2w) 6519 | -6/Factory | System corruption reached 10% 6595 | -6/Factory | Core integrity fell below 50% 6639 | -6/Factory | Lost 4 parts (1p1n1u1w) 6944 | -6/Factory | Lost 3 parts (1p2n) 7025 | -6/Factory | Lost 4 parts (2n2u) 7243 | -6/Factory | Discovered new exit (range 11) 7262 | -6/Factory | Entered another Factory area 7262 | -5/Factory | Evolved 2 slots: Propulsion x2 7392 | -5/Factory | System corruption reached 10% 7461 | -5/Factory | Spotted B-75 Beast 7687 | -5/Factory | Discovered new exit (range 6) 7697 | -5/Factory | Entered Extension 7721 | -5/Extension | Lost 5 parts (3n1u1w) 7753 | -5/Extension | Rescued a captive Derelict 7997 | -5/Extension | First assault squad dispatched 7997 | -5/Extension | Rescued a captive Derelict 7998 | -5/Extension | Rescued a captive Derelict 8284 | -5/Extension | Rescued a captive Derelict 8457 | -5/Extension | Rescued a captive Derelict 8462 | -5/Extension | Rescued a captive Derelict 8478 | -5/Extension | Rescued a captive Derelict 8619 | -5/Extension | Build established: Scavenger-Mutant 8805 | -5/Extension | Rescued a captive Derelict 8805 | -5/Extension | Rescued a captive Derelict 8871 | -5/Extension | Discovered new exit (range 10) 8874 | -5/Extension | Discovered new exit (range 6) 8887 | -5/Extension | Disrupted transfer network 8887 | -5/Extension | Entered Cetus 8887 | -5/Cetus | Accompanied by 10 allies 8905 | -5/Cetus | Spotted Cetus Guard 8905 | -5/Cetus | Spotted Cetus Guard 8910 | -5/Cetus | Spotted Cetus Guard 8924 | -5/Cetus | Spotted Cetus Guard 8927 | -5/Cetus | Allies destroyed Cetus Guard 8931 | -5/Cetus | Destroyed Cetus Guard 8934 | -5/Cetus | Destroyed Cetus Guard 9052 | -5/Cetus | Discovered new exit (range 16) 9082 | -5/Cetus | Entered Archives 9082 | -5/Archives | Accompanied by 5 allies 9107 | -5/Archives | Build established: Scavenger-Tank 9125 | -5/Archives | Discovered new exit (range 15) 9145 | -5/Archives | Discovered new exit (range 15) 9156 | -5/Archives | Unable to access archive contents 9161 | -5/Archives | Discovered new exit (range 14) 9212 | -5/Archives | Unable to access archive contents 9277 | -5/Archives | Entered Hub_04(d) 9277 | -5/Hub_04(d) | Accompanied by 3 allies 9347 | -5/Hub_04(d) | Discovered new exit (range 5) 9390 | -5/Hub_04(d) | Found Prototype Launcher 9470 | -5/Hub_04(d) | Network Hub disabled 9470 | -5/Hub_04(d) | Network Hub disabled 9824 | -5/Hub_04(d) | Entered Factory 9824 | -4/Factory | Evolved 2 slots: Utility x2 9854 | -4/Factory | Found Prototype Processor 9854 | -4/Factory | Identified Exp. Signal Interpreter 9992 | -4/Factory | Discovered new exit (range 7) 9994 | -4/Factory | Identified exit to DSF 10053 | -4/Factory | Identified exit to Upper Caves 10055 | -4/Factory | Entered Upper Caves 10456 | -4/Upper Caves | Learned location of Quarantine (-3) 10584 | -4/Upper Caves | Discovered new exit (range 5) 10585 | -4/Upper Caves | Attracted the attention of an 0b10 checkpoint 10588 | -4/Upper Caves | Identified exit to Upper Caves 10589 | -4/Upper Caves | Entered another Upper Caves area 10594 | -4/Upper Caves | Identified Scatter Rocket Array 10632 | -4/Upper Caves | Lost 3 parts (2u1w) 10635 | -4/Upper Caves | Discovered new exit (range 16) 10732 | -4/Upper Caves | Lost 15 parts (1p8n2u4w) 10771 | -4/Upper Caves | Spotted B-86 Titan 10776 | -4/Upper Caves | Identified exit to Research 10778 | -4/Upper Caves | Entered Research 10778 | -3/Research | Evolved 2 slots: Power x1, Utility x1 11000 | -3/Research | Lost 4 parts (1p1u2w) 11383 | -3/Research | Identified exit to Armory 11383 | -3/Research | Identified exit to Quarantine 11582 | -3/Research | System corruption reached 10% 11747 | -3/Research | Lost 3 parts (2n1w) 11802 | -3/Research | Build established: Scavenger-Mutant 11876 | -3/Research | Discovered new exit (range 10) 11893 | -3/Research | Entered Quarantine 11918 | -3/Quarantine | Spotted Alpha 7 11925 | -3/Quarantine | Found Alien Launcher 11925 | -3/Quarantine | Identified Sigix Terminator 11957 | -3/Quarantine | Found Alien Artifact 11957 | -3/Quarantine | Identified Core Reset Matrix 11957 | -3/Quarantine | Used Core Reset Matrix 11961 | -3/Quarantine | Detected hypermatrix surge 11961 | -3/Quarantine | Sensed 14 artifacts in vicinity 11964 | -3/Quarantine | Met incapacitated Sigix Warrior 11964 | -3/Quarantine | Lockdown squad dispatched 11969 | -3/Quarantine | Spotted Lightning 11972 | -3/Quarantine | Spotted Lightning 11974 | -3/Quarantine | Spotted Lightning 12041 | -3/Quarantine | Cryocooling Duct disabled 12056 | -3/Quarantine | Ambient heat levels rising (+20) 12056 | -3/Quarantine | Non-combat units ordered to evacuate 12092 | -3/Quarantine | Found Sigix Broadsword 12143 | -3/Quarantine | Search patrols dispatched 12147 | -3/Quarantine | Found Matter Drive 12175 | -3/Quarantine | Crushed by falling debris 12179 | -3/Quarantine | Spotted Fortress 12199 | -3/Quarantine | Discovered new exit (range 7) 12200 | -3/Quarantine | Identified exit to Section 7 12202 | -3/Quarantine | Entered Section 7 12203 | -3/Section 7 | Sensed 23 artifacts in vicinity 12265 | -3/Section 7 | Spotted B-86 Titan 12282 | -3/Section 7 | Discovered new exit (range 4) 12283 | -3/Section 7 | Identified exit to Research 12283 | -3/Section 7 | Entered Research 12283 | -2/Research | Evolved 2 slots: Propulsion x2 12294 | -2/Research | Discovered new exit (range 13) 12321 | -2/Research | Identified exit to Access 12322 | -2/Research | Entered Access 12322 | -1/Access | Evolved 2 slots: Power x2 12395 | -1/Access | Found Unknown Piercing Weapon 12395 | -1/Access | Identified Enh. Force Lance 12403 | -1/Access | Found Prototype Slashing Weapon 12403 | -1/Access | Identified Centrium Greatsword 12555 | -1/Access | Spotted B-99 Colossus 12599 | -1/Access | Crushed by falling debris 12622 | -1/Access | Spotted B-99 Colossus 12623 | -1/Access | Build established: Alien-Sprinter 12631 | -1/Access | Identified exit to Surface 12697 | *** | Destroyed 0B10! Last Messages --------------- 12638_ O-32 Director: "IFF HANDSHAKE FAILED. SECURING TERMINAL." 12640_ O-32 Director uses terminal to summon reinforcements. 12640_ ALERT: Hostiles spotted, dispatching reinforcements to Terminal A005. 12640_ O-32 Director locks terminal. 12642_ Terminal disabled. 12658_ Dropped Enh. Force Lance. 12659_ Acquired Unknown Flight Unit. 12662_ Sneak attack on U-05 Engineer. 12662_ Destroyed Unknown Wheel. 12662_ Destroyed Unknown Special Weapon. 12662_ Destroyed Unknown Wheel. 12662_ U-05 Engineer destroyed. 12665_ K-01 Serf collects debris. 12665_ Acquired 17 matter. 12666_ Acquired Unknown Device. 12666_ Identified Structural Scanner. 12681_ Connecting with Terminal... 12685_ ALERT: Security rotation in progress. 12694_ Main Access Shell breached. Map ----- +----------------------------------------------------+ | ?????????????????????????????????????????????????? | | ?????????????????????????????????????????????????? | | ?????????????????????????????????????????????????? | | ?????????????????????????????????????????????????? | | ?????????????????????????????????????? ?????????? | | ?????????????????????????????????????? ##???????? | | ?????????????????????????????????????? ##???????? | | ???????????????????????????????????? # ##???????? | | ???????????????????????????????????? + ##???????? | | ???????????????????????????????????? # ##???????? | | ???????????????????????????????????? # ##???????? | | ???????????????????????????????????? # ##???????? | | ???????????????????????????????????? # ##???????? | | ???????????????????????????????????? # ##???????? | | ???????????????????????????????????? # ##???????? | | ????????????????????????????????????## ##???????? | | ???????????????????????????#######??## ##???????? | | ??????????????????????????#########?## ##???????? | | ??????????????????????????### ###?## ########## | | ???????????????????######### """ ##### ########## | | ???????????????????#########"""""##### ## | | ???????????????????"" " ## = | | ????????????????????" " ## | | ????????????????????" """""" " ## | | ??????????????????????" " #" | | ??????????????????????" "@ " " "" | | ??????????????????????" "" " " #" | | ??????????????????????" " " #####+#### | | ??????????????????????"""""" " ## | | ??????????????????????????? """" """ ## | | ?????????????????????????? """"T""" ## | | ??????????????????????????####"####### ## | | ??????????????????????????############ ##! | | ????????????????????????????????????## ## | | ????????????????????????????????????## ## * | | ????????????????????????????????????## ## | | ????????????????????????????????????## ## | | ????????????????????????????????????## ###+###### | | ???????????????????????????????????? """T"" | | ????????????????????????????????????? ????????? | | ????????????????????????????????????? ????????? | | ????????????????????????????????????? ???????? | | ????????????????????????????????????? ????????? | | ????????????????????????????????????? ???????? | | ????????????????????????????????????? ??????? | | ????????????????????????????????????? ??????? | | ????????????????????????????????????? ??????? | | ????????????????????????????????????????????????## | | ????????????????????????????????????????????????## | | ?????????????????????????????????????????????????? | +----------------------------------------------------+ Best States ------------- Heat Dissipation 103 Energy Generation 37 Energy Capacity 715 Matter Stores 300 Matter Capacity 450 Sight Range 22 Robot Scan Range 15 Terrain Scan Density 10 ECM Strength 1 Armor Coverage 750 Propulsion Shielding 66 Point Defense Rating 80 Evasion (%) 65 Melee Accuracy 6 Recoil Reduction 6 Matter Filtering 30 Salvage Targeting 2 Offensive Hacking 10 Defensive Hacking 22 Trap Extractor Capacity 6 Item Schematics ----------------- None Robot Schematics ------------------ None Fabricated ------------ Nothing Alien Tech Used ----------------- Sigix Terminator Core Reset Matrix Sigix Broadsword Matter Drive Achievements -------------- None Challenges ------------ None Game ------ Seed CoilGhostShield Manual? 0 Play Time 02:05:44 Cumulative 306.3 hours Start 2022.06.09 @ 12:38:01 End 2022.06.09 @ 15:29:53 Sessions 1 Manual Loads 0 Difficulty Rogue Special Mode None Game No. 385 Rogue 384 Adventurer 0 Explorer 1 Win Type 3 Total 7 Types 5/0/0/2/0/0/0/0/0 Lore% 69 Gallery% 81 Achievement% 59 Wizard Run 0 Options --------- ASCII 0 Keyboard 1 Movement Vi Keybinds 0 Fullscreen 1 Font 18/SmallcapsGlow Map View 76x50 Tactical HUD 1 Map Filters NONE Filters NONE Steam 1 RUN: f1d582a7-5855-4781-9c45-9fcddda87a3d